bitfinex-derivatives/quotes_ETHF0:USTF0_20250520
["timestamp","ask_amount","ask_price","bid_price","bid_amount"]
[1747742785194,2.72936098,2507.4,2507.3,16.87880833]
[1747742785801,3.52669098,2507.4,2507.3,16.87880833]
[1747742786001,3.52669098,2507.4,2507.3,16.39002501]
[1747742786499,3.52669098,2507.4,2507.3,16.39004852]
[1747742786702,3.52669098,2507.4,2507.3,16.39004864]
[1747742786898,0.79772,2506.2,2505.3,5.31263823]
[1747742787100,10.999655,2506.2,2506.1,4.68e-06]
[1747742788000,10.999655,2506.2,2505.9,8.202]
[1747742788001,0.79778,2506.0,2505.9,0.24516884]
[1747742788198,2.791915,2506.0,2505.9,11.28016884]
[1747742789303,2.791915,2506.0,2505.9,11.28216884]
[1747742789506,2.791915,2506.0,2505.9,11.037]
[1747742790102,4.101215,2506.0,2505.9,11.037]
[1747742791596,0.79778,2506.0,2505.9,13.03225]
[1747742792000,0.79778,2506.0,2505.9,14.34855]
[1747742793006,0.79778,2506.0,2505.9,6.05155]
[1747742793209,0.79778,2506.0,2505.9,14.34955]
[1747742794010,5.999,2506.0,2504.7,3.2078]
[1747742794307,0.79842,2504.0,2503.5,10.1593]
[1747742794505,4.00622,2504.0,2503.5,8.843]
[1747742794701,4.00622,2504.0,2503.9,6.85859308]
[1747742795103,4.00622,2504.0,2503.9,9.59859308]
[1747742795302,4.00622,2504.0,2503.9,18.44159308]
[1747742795501,4.00622,2504.0,2503.9,13.579845]
[1747742795702,4.787805,2504.0,2503.9,11.583]
[1747742796405,0.7986,2503.5,2503.2,0.79864]
[1747742796614,3.2078,2503.5,2503.3,8.845]
[1747742796811,3.2078,2503.5,2503.4,0.79861]
[1747742797104,3.2078,2503.5,2503.4,2.795855]
[1747742797310,3.2078,2503.5,2503.4,7.795855]
[1747742797513,3.2078,2503.8,2503.4,6.997245]
[1747742797810,3.2078,2503.8,2503.7,0.79849]
[1747742798000,0.79844,2504.0,2503.7,9.64349]
[1747742798206,4.0062,2504.1,2503.8,0.79847]
[1747742798599,4.0062,2504.1,2503.8,2.795315]
[1747742799111,4.0062,2504.1,2503.8,5.535315]
[1747742799510,0.781585,2504.0,2503.8,2.74]
[1747742799711,2.18574,2504.0,2503.9,8.847]
[1747742800311,2.967325,2504.0,2503.9,11.587]
[1747742801515,0.781585,2503.3,2503.1,0.31939683]
[1747742801710,0.7989,2502.5,2502.2,1.1410647]
[1747742802003,4.46888817,2502.5,2502.2,1.1410647]
[1747742802211,0.79896,2502.3,2502.2,1.1410647]
[1747742802412,1.26114817,2502.3,2502.2,1.1410647]
[1747742803707,0.46218817,2502.3,2502.2,1.9400547]
[1747742804113,3.2078,2502.5,2502.2,3.1392647]
[1747742804410,3.2078,2502.5,2502.4,0.79893]
[1747742804805,3.2078,2502.5,2502.4,2.79697]
[1747742805203,3.2078,2502.5,2502.4,5.53697]
[1747742806513,3.2078,2502.5,2502.4,15.37297]
[1747742806808,3.66998817,2502.5,2502.4,15.37297]
[1747742807013,3.2078,2502.5,2502.4,15.37497]
[1747742807710,3.2078,2502.5,2502.4,13.37693]
[1747742808403,0.79887,2502.6,2502.4,13.37693]
[1747742808611,1.26105817,2502.6,2502.5,0.7989]
[1747742809013,0.7989,2502.5,2502.4,13.37691]
[1747742809212,4.46888817,2502.5,2502.4,9.838]
[1747742809418,5.86078817,2502.5,2502.4,9.838]
[1747742809613,5.86078817,2502.5,2502.4,10.63693]
[1747742809814,5.86078817,2502.5,2502.4,9.92286477]
[1747742810116,5.86078817,2502.5,2502.4,12.66286477]
[1747742810520,3.2078,2502.5,2502.4,15.45983477]
[1747742810716,0.00599413,2502.7,2502.6,0.79886]
[1747742811213,0.4681823,2502.7,2502.6,5.79886]
[1747742811415,0.00599413,2502.7,2502.6,7.14376]
[1747742811609,0.4681823,2502.7,2502.6,7.14376]
[1747742812014,0.00599413,2502.7,2502.6,7.14376]
[1747742812214,0.4681823,2502.7,2502.5,1.86807255]
[1747742812413,0.4681823,2502.7,2501.5,9.839]
[1747742812414,0.46218817,2502.5,2501.5,9.839]
[1747742812720,3.2078,2502.6,2502.5,0.79888]
[1747742812911,4.00666,2502.6,2502.5,10.305]
[1747742813113,3.2078,2502.6,2502.5,13.84389]
[1747742813312,3.66998817,2502.6,2502.5,3.53889]
[1747742813510,3.66998817,2502.6,2502.5,13.84489]
[1747742813919,3.2078,2502.6,2502.5,13.84489]
[1747742814121,3.66998817,2502.6,2502.5,13.84489]
[1747742814513,0.00599413,2502.7,2502.5,13.046]
[1747742814717,0.46218817,2502.6,2502.5,13.046]
[1747742815224,0.00599413,2502.7,2502.6,0.79886]
[1747742817315,0.4681823,2502.7,2502.6,0.79886]
[1747742817511,0.00599413,2502.7,2502.6,0.79886]
[1747742817718,0.4681823,2502.7,2502.6,0.79886]
[1747742818022,1.2670123,2502.7,2502.6,10.306]
[1747742818619,0.80482413,2502.7,2502.6,11.10486]
[1747742818921,0.80482413,2502.7,2502.6,0.79886]
[1747742819118,0.80482413,2502.7,2502.6,11.10586]
[1747742819320,0.00599413,2502.7,2502.6,11.10586]
[1747742819520,0.4681823,2502.7,2502.6,11.10586]
[1747742819920,0.00599413,2502.7,2502.6,11.10586]
[1747742820119,0.79905,2502.0,2501.9,0.48519659]
[1747742820423,0.79918,2501.6,2501.3,0.79925]
[1747742820727,4.46916817,2501.6,2501.3,10.307]
[1747742821215,0.79925,2501.4,2501.2,0.79928]
[1747742821415,0.46218817,2501.4,2501.3,11.10628]
[1747742821615,0.79925,2501.4,2501.3,10.307]
[1747742821823,1.26143817,2501.4,2501.3,10.307]
[1747742822121,1.26143817,2501.4,2501.3,13.047]
[1747742822324,0.46218817,2501.4,2501.3,13.84626]
[1747742822516,2.14042,2501.5,2501.3,13.047]
[1747742822714,0.46218817,2501.5,2501.3,13.047]
[1747742822911,3.21379413,2501.6,2501.5,0.79921]
[1747742823116,3.21379413,2501.6,2501.5,3.53921]
[1747742823315,4.01297413,2501.6,2501.5,2.74]
[1747742823515,3.6759823,2501.6,2501.5,3.53921]
[1747742823717,3.21379413,2501.6,2501.5,3.53921]
[1747742823919,4.4751623,2501.6,2501.5,2.74]
[1747742824112,5.7721623,2501.6,2501.5,13.049]
[1747742824319,3.19642923,2501.6,2501.5,15.84697]
[1747742824619,2.73424106,2501.6,2501.5,15.84697]
[1747742824825,3.19642923,2501.6,2501.5,5.53797]
[1747742825021,2.73424106,2501.6,2501.5,15.93183477]
[1747742825222,3.53342106,2501.6,2501.5,4.82362477]
[1747742825414,5.37640923,2501.6,2501.5,15.13362477]
[1747742825619,4.91422106,2501.6,2501.5,15.13362477]
[1747742825824,5.37640923,2501.6,2501.5,13.13486477]
[1747742826932,5.37640923,2501.6,2501.5,13.93407477]
[1747742827129,4.57722923,2501.6,2501.5,13.93407477]
[1747742827424,5.37640923,2501.6,2501.5,15.31357477]
[1747742827931,5.37640923,2501.6,2501.5,14.51436477]
[1747742828227,4.57722923,2501.6,2501.5,17.31233477]
[1747742828526,3.19642923,2501.6,2501.5,17.31233477]
[1747742828726,3.99560923,2501.6,2501.5,13.46090066]
[1747742828925,3.99560923,2501.6,2501.5,3.15090066]
[1747742829127,3.99560923,2501.6,2501.5,13.46090066]
[1747742829429,3.99560923,2501.6,2501.5,3.15090066]
[1747742829629,3.99560923,2501.6,2501.5,13.46090066]
[1747742831523,3.60596056,2501.6,2501.5,13.46090066]
[1747742832128,3.60596056,2501.6,2501.5,13.13486477]
[1747742833630,3.60596056,2501.6,2501.5,2.82486477]
[1747742833934,3.60596056,2501.6,2501.5,13.45557913]
[1747742834230,2.80678056,2501.6,2501.5,14.25478913]
[1747742834528,2.32720685,2501.6,2501.5,17.51514913]
[1747742834722,1.86501868,2501.6,2501.5,17.51514913]
[1747742834922,2.32720685,2501.6,2501.5,17.51514913]
[1747742835128,0.672,2502.2,2501.8,1.99777]
[1747742835336,0.79905,2502.0,2501.9,1.2616]
[1747742835525,0.672,2502.2,2502.0,0.79905]
[1747742835728,0.79905,2502.0,2501.9,0.64637125]
[1747742835932,0.79905,2502.0,2501.9,10.95837125]
[1747742836134,2.79749,2502.0,2501.9,10.95837125]
[1747742836432,0.79905,2502.0,2501.9,10.95837125]
[1747742836832,0.79905,2502.0,2501.9,0.64637125]
[1747742837030,4.09049,2502.0,2501.9,10.95837125]
[1747742837334,4.09049,2502.0,2501.9,13.69837125]
[1747742837535,4.09049,2502.0,2501.9,4.70887125]
[1747742837736,4.09049,2502.0,2501.9,15.01987125]
[1747742838235,4.09049,2502.0,2501.9,4.70887125]
[1747742838435,4.09049,2502.0,2501.9,15.01987125]
[1747742838737,4.09049,2502.0,2501.9,15.81895125]
[1747742839030,1.99844,2502.0,2501.9,15.81895125]
[1747742839338,4.00683,2502.1,2502.0,0.79905]
[1747742839633,4.00683,2502.1,2502.0,2.12155]
[1747742839823,4.00683,2502.1,2502.0,4.11991]
[1747742840135,4.00683,2502.1,2502.0,6.85991]
[1747742841339,4.00683,2502.1,2502.0,13.69737125]
[1747742841540,4.00683,2502.1,2502.0,15.02277125]
[1747742841841,5.39513,2502.1,2502.0,17.02113125]
[1747742842234,5.39513,2502.1,2502.0,17.82018125]
[1747742842429,3.2078,2502.1,2502.0,17.82018125]
[1747742843032,0.00599413,2502.2,2502.1,0.79902]
[1747742843445,0.00599413,2502.2,2502.1,2.7973]
[1747742843739,3.2078,2502.4,2502.3,0.79896]
[1747742843937,3.2078,2502.4,2502.3,2.79708]
[1747742844236,3.2078,2502.4,2502.3,5.53708]
[1747742844536,4.00665,2502.7,2502.6,0.79886]
[1747742844841,4.00665,2502.7,2502.6,10.86786]
[1747742845141,3.2078,2502.7,2502.6,12.86573999]
[1747742845333,4.00663,2502.7,2502.6,12.86573999]
[1747742845639,3.2078,2502.7,2502.6,14.18553999]
[1747742846033,3.2078,2502.7,2502.6,14.83221748]
[1747742847239,4.00663,2502.7,2502.6,14.03335748]
[1747742847743,4.00663,2502.7,2502.6,13.70639435]
[1747742848250,4.00663,2502.7,2502.6,14.50525435]
[1747742850752,0.80476413,2502.9,2502.8,0.7988]
[1747742851253,2.80248914,2502.9,2502.8,3.85851436]
[1747742851644,2.80248914,2502.9,2502.8,5.22871436]
[1747742851957,0.00599413,2502.9,2502.8,5.22871436]
[1747742852147,0.00599413,2502.9,2502.8,7.22643936]
[1747742852751,0.00599413,2502.9,2502.8,7.55340249]
[1747742853343,4.13e-06,2502.9,2502.8,52.82640249]
[1747742853549,3.2078,2503.5,2503.4,0.79861]
[1747742853845,3.2078,2503.5,2503.4,10.86561]
[1747742854050,0.66390563,2503.6,2503.5,0.79857]
[1747742854240,0.66390563,2503.6,2503.5,2.78117]
[1747742854445,0.66390563,2503.6,2503.5,9.778335]
[1747742854652,0.66390563,2503.6,2503.5,12.986135]
[1747742854956,1.00530578,2503.8,2503.7,0.79851]
[1747742855357,0.66998932,2503.8,2503.7,2.795515]
[1747742855657,0.66998932,2503.8,2503.7,4.133015]
[1747742856554,0.66998932,2503.8,2503.7,4.803615]
[1747742857154,0.66998932,2503.8,2503.7,5.44851021]
[1747742857364,0.66998932,2503.8,2503.7,14.43651021]
[1747742858262,0.66998932,2503.8,2503.7,14.35504987]
[1747742858853,0.00599413,2503.8,2503.7,14.35504987]
[1747742859760,0.00599413,2503.8,2503.7,24.41704987]
[1747742860156,0.00599413,2503.8,2503.7,15.43104987]
[1747742860355,2.00299914,2503.8,2503.7,0.56343487]
[1747742860555,0.00599413,2503.8,2503.7,13.42294987]
[1747742860763,0.00599413,2503.8,2503.7,14.50852936]
[1747742862264,0.80447413,2503.8,2503.7,14.50852936]
[1747742862662,3.21379413,2503.8,2503.7,14.50852936]
[1747742863067,3.21379413,2503.8,2503.7,14.188815]
[1747742863363,0.00599413,2503.8,2503.7,14.188815]
[1747742864561,0.00599413,2503.8,2503.7,14.50852936]
[1747742865166,3.21379413,2503.8,2503.7,14.50852936]
[1747742865373,0.00599413,2503.8,2503.7,14.50852936]
[1747742868869,0.00599413,2503.8,2503.7,14.50652936]
[1747742869465,3.21379413,2503.8,2503.7,14.50652936]
[1747742869673,4.01227413,2503.8,2503.7,14.50652936]
[1747742869973,3.21379413,2503.8,2503.7,13.17722936]
[1747742870164,0.00599413,2503.8,2503.7,13.17722936]
[1747742870364,0.00599413,2503.8,2503.7,14.56432936]
[1747742870764,0.00599413,2503.8,2503.7,14.64919413]
[1747742870971,0.00599413,2503.8,2503.7,14.19019413]
[1747742871970,0.00599413,2503.8,2503.7,14.10532936]
[1747742872666,0.00599413,2503.8,2503.7,14.34904987]
[1747742873980,3.8455,2504.5,2504.2,0.79835]
[1747742874164,3.8455,2504.5,2504.4,0.79829]
[1747742874370,4.5823,2504.8,2504.7,0.79819]
[1747742874574,4.5823,2504.8,2504.7,10.40019]
[1747742874873,6.57850501,2504.8,2504.7,10.40019]
[1747742875976,1.3745,2504.8,2504.7,12.71610936]
[1747742876472,1.3745,2504.8,2504.7,10.71990436]
[1747742876667,1.3745,2504.8,2504.7,12.71610936]
[1747742876867,1.3745,2504.8,2504.7,10.71990436]
[1747742877064,0.80411413,2505.0,2504.7,11.91791936]
[1747742877272,1.38939413,2505.0,2504.8,1.2751]
[1747742877575,1.38939413,2505.0,2504.8,0.79815]
[1747742877576,0.79814,2504.9,2504.8,0.79815]
[1747742878079,4.17768001,2504.9,2504.8,3.782805]
[1747742878371,3.37953001,2504.9,2504.8,3.782805]
[1747742878573,1.3834,2504.9,2504.8,3.782805]
[1747742878770,0.00599413,2505.0,2504.9,0.79813]
[1747742878970,0.00599413,2505.0,2504.9,2.07323]
[1747742879167,2.00204413,2505.0,2504.9,4.81323]
[1747742879371,0.00599413,2505.0,2504.9,4.81323]
[1747742879578,2.00204413,2505.0,2504.9,4.81323]
[1747742879771,0.00599413,2505.0,2504.9,4.81323]
[1747742880574,0.00599413,2505.0,2504.9,6.80927999]
[1747742880778,3.2078,2505.4,2505.3,0.798]
[1747742881078,3.2078,2505.4,2505.3,10.398]
[1747742881276,3.2078,2505.4,2505.3,15.13373]
[1747742882081,4.5913,2505.4,2505.3,15.13373]
[1747742883476,4.5913,2505.4,2505.3,15.77914559]
[1747742883877,4.5913,2505.4,2505.3,17.14894559]
[1747742884683,3.2078,2505.4,2505.3,17.14894559]
[1747742886086,3.2078,2505.4,2505.3,17.23381036]
[1747742887785,3.21300853,2505.4,2505.3,17.23381036]
[1747742887987,3.21300853,2505.4,2505.3,17.14894559]
[1747742889189,6.00670853,2505.4,2505.3,12.98241559]
[1747742889891,7.38510853,2505.4,2505.3,3.38541559]
[1747742890081,12.38510853,2505.4,2505.3,9.597]
[1747742890285,12.38510853,2505.4,2505.1,0.48788927]
[1747742890286,0.79803,2505.2,2505.1,9.84077321]
[1747742890688,2.79392,2505.2,2505.1,9.84077321]
[1747742890884,7.79392,2505.2,2505.1,0.24377321]
[1747742891490,9.17232,2505.2,2505.1,0.24377321]
[1747742892085,0.79807,2505.1,2505.0,9.597]
[1747742892289,5.40277,2505.1,2505.0,9.597]
[1747742892588,12.39874001,2505.1,2505.0,9.597]
[1747742893485,7.39874001,2505.1,2505.0,9.597]
[1747742894890,7.39874001,2505.1,2505.0,10.3951]
[1747742895080,6.60067001,2505.1,2505.0,10.3951]
[1747742895285,3.2078,2505.1,2505.0,12.39107]
[1747742895582,4.00587,2505.1,2505.0,12.39107]
[1747742895984,4.00587,2505.1,2505.0,13.67597]
[1747742896183,4.00587,2505.1,2505.0,16.41597]
[1747742897191,4.00587,2505.1,2505.0,15.61787]
[1747742897384,4.00587,2505.1,2505.0,12.337]
[1747742897585,6.00184001,2505.1,2505.0,12.337]
[1747742897786,6.00184001,2505.1,2505.0,13.6219]
[1747742897985,6.00184001,2505.1,2505.0,14.42]
[1747742898185,6.00184001,2505.1,2505.0,11.68]
[1747742898594,6.00184001,2505.1,2505.0,10.8819]
[1747742901490,4.00587,2505.1,2505.0,11.68]
[1747742901690,4.00586,2505.1,2505.0,13.67597]
[1747742902197,4.00586,2505.1,2505.0,16.41597]
[1747742902697,4.00586,2505.1,2505.0,15.61787]
[1747742903397,4.00586,2505.1,2505.0,16.1809196]
[1747742903704,6.00183001,2505.1,2505.0,3.3030496]
[1747742903891,6.00183001,2505.1,2505.0,12.4770496]
[1747742904192,6.00183001,2505.1,2505.0,9.7370496]
[1747742904696,6.00183001,2505.1,2505.0,9.49327639]
[1747742905284,6.00183001,2505.1,2505.0,9.77509377]
[1747742905694,6.00183001,2505.1,2505.0,0.60109377]
[1747742905899,6.00183001,2505.1,2505.0,9.77509377]
[1747742906099,4.00586,2505.1,2505.0,9.77509377]
[1747742906301,6.00183001,2505.1,2505.0,9.77509377]
[1747742906995,6.00183001,2505.1,2505.0,9.77522217]
[1747742907701,6.00183001,2505.1,2505.0,0.60122217]
[1747742907902,6.00183001,2505.1,2505.0,9.77522217]
[1747742908605,6.00183001,2505.1,2505.0,9.77520591]
[1747742908806,6.00183001,2505.1,2505.0,10.57330591]
[1747742909101,6.00183001,2505.1,2505.0,11.17070591]
[1747742910401,6.00183001,2505.1,2505.0,11.17071818]
[1747742911901,6.00183001,2505.1,2505.0,11.68687639]
[1747742912106,6.00183001,2505.1,2505.0,16.01158689]
[1747742912401,6.00183001,2505.1,2505.0,4.13908689]
[1747742912597,6.00183001,2505.1,2505.0,13.5568601]
[1747742913091,6.00183001,2505.1,2505.0,10.8168601]
[1747742913301,6.00183001,2505.1,2505.0,10.0187601]
[1747742913500,6.00183001,2505.1,2505.0,10.8168601]
[1747742913701,6.00183001,2505.1,2505.0,12.15924151]
[1747742913905,6.00183001,2505.1,2505.0,11.36114151]
[1747742915405,6.00183001,2505.1,2505.0,11.36124271]
[1747742915905,4.00586,2505.1,2505.0,12.15934271]
[1747742916099,3.2078,2505.1,2505.0,14.15531271]
[1747742916304,3.2078,2505.1,2505.0,16.89531271]
[1747742916699,3.2078,2505.1,2505.0,17.56011271]
[1747742916906,4.00586,2505.1,2505.0,17.56011271]
[1747742917108,4.00586,2505.1,2505.0,17.56037448]
[1747742917404,4.00586,2505.1,2505.0,17.80579504]
[1747742918011,4.00586,2505.1,2505.0,17.00769504]
[1747742918209,4.00586,2505.1,2505.0,15.06579504]
[1747742918710,3.61676787,2505.1,2505.0,15.06608419]
[1747742919306,3.61676787,2505.1,2505.0,8.63208419]
[1747742919512,5.61273788,2505.1,2505.0,15.01201419]
[1747742920014,5.61273788,2505.1,2505.0,15.81011419]
[1747742921113,5.61273788,2505.1,2505.0,15.81036185]
[1747742922715,3.61676787,2505.1,2505.0,15.81036185]
[1747742924110,3.61676787,2505.1,2505.0,17.80633185]
[1747742924309,3.61676787,2505.1,2505.0,15.81036185]
[1747742924509,3.61676787,2505.1,2505.0,15.32116808]
[1747742924809,3.61676787,2505.1,2505.0,17.31713808]
[1747742925010,3.61676787,2505.1,2505.0,14.52306808]
[1747742925211,5.61273788,2505.1,2505.0,11.78206808]
[1747742925508,5.61273788,2505.1,2505.0,0.31927639]
[1747742925509,10.61273788,2505.1,2505.0,0.31927639]
[1747742925712,10.61273788,2505.1,2505.0,0.60203172]
[1747742928515,10.61273788,2505.1,2505.0,0.84740725]
[1747742928916,5.61273788,2505.1,2505.0,0.56465192]
[1747742929213,5.61273788,2505.1,2505.0,1.64548865]
[1747742929420,4.81467788,2505.1,2505.0,0.84738865]
[1747742929817,6.16607788,2505.1,2505.0,0.84738865]
[1747742930421,6.96414788,2505.1,2505.0,0.84738865]
[1747742930719,6.96414788,2505.1,2505.0,0.84738273]
[1747742930920,7.63784788,2505.1,2505.0,0.84738273]
[1747742931621,6.83977788,2505.1,2505.0,0.9322475]
[1747742932016,6.16607788,2505.1,2505.0,0.68687197]
[1747742932219,6.16607788,2505.1,2505.0,3.42687197]
[1747742932520,6.16607788,2505.1,2505.0,3.42665082]
[1747742933221,6.96413788,2505.1,2505.0,3.42665082]
[1747742933821,7.96344953,2505.1,2505.0,12.49202635]
[1747742934024,7.96344953,2505.1,2505.0,12.49205232]
[1747742935124,7.96344953,2505.1,2505.0,3.67205232]
[1747742935530,7.96344953,2505.1,2505.0,12.49205232]
[1747742935731,18.23644953,2505.1,2505.0,3.6720487]
[1747742936021,13.23644953,2505.1,2505.0,3.6720487]
[1747742936924,13.23644953,2505.1,2505.0,3.42667317]
[1747742938722,7.96344953,2505.1,2505.0,3.10739678]
[1747742939127,7.96344953,2505.1,2505.0,3.10727743]
[1747742940425,6.61204953,2505.1,2505.0,11.92827743]
[1747742940625,5.61273788,2505.1,2505.0,13.26367743]
[1747742940827,5.61273788,2505.1,2505.0,13.26360601]
[1747742942022,5.61273788,2505.1,2505.0,13.8282607]
[1747742942629,3.61676787,2505.1,2505.0,15.8242307]
[1747742942833,3.61676787,2505.1,2505.0,16.6223307]
[1747742943719,3.61676787,2505.1,2505.0,16.7042245]
[1747742943925,3.61676787,2505.1,2505.0,15.9061245]
[1747742945335,3.61676787,2505.1,2505.0,15.90608971]
[1747742946531,3.61676787,2505.1,2505.0,7.08508971]
[1747742946723,5.61273788,2505.1,2505.0,12.57371971]
[1747742947134,5.61273788,2505.1,2505.0,12.57381004]
[1747742948436,5.61273788,2505.1,2505.0,5.12141004]
[1747742948935,5.61273788,2505.1,2505.0,13.94141004]
[1747742949536,5.61273788,2505.1,2505.0,13.61414071]
[1747742949738,6.61260423,2505.1,2505.0,13.61414071]
[1747742950444,6.61260423,2505.1,2505.0,13.61420843]
[1747742951942,6.61260423,2505.1,2505.0,12.24660843]
[1747742952143,6.61260423,2505.1,2505.0,12.24664265]
[1747742952642,5.61273788,2505.1,2505.0,12.49203329]
[1747742953142,5.61273788,2505.1,2505.0,13.83543329]
[1747742953539,5.61273788,2505.1,2505.0,13.83549776]
[1747742953745,5.61273788,2505.1,2505.0,13.59010712]
[1747742954043,3.61676787,2505.1,2505.0,15.58607712]
[1747742955548,3.61676787,2505.1,2505.0,15.58611421]
[1747742957248,3.61676787,2505.1,2505.0,15.58611495]
[1747742957846,4.00586,2505.1,2505.0,15.58611495]
[1747742958547,7.28933001,2505.1,2505.0,3.42674495]
[1747742958847,7.28933001,2505.1,2505.0,3.42676049]
[1747742960347,7.28933001,2505.1,2505.0,3.67239318]
[1747742960549,7.28933001,2505.1,2505.0,5.0332059]
[1747742960851,8.28919636,2505.1,2505.0,5.0332059]
[1747742961149,5.00572635,2505.1,2505.0,5.0332059]
[1747742961748,5.00572635,2505.1,2505.0,5.11484254]
[1747742962748,4.20766635,2505.1,2505.0,5.91294254]
[1747742962953,5.00572635,2505.1,2505.0,7.90891254]
[1747742964046,4.00586,2505.1,2505.0,7.90883436]
[1747742964550,4.00586,2505.1,2505.0,7.27448776]
[1747742965847,4.01052265,2505.1,2505.0,7.27448776]
[1747742966453,0.80272265,2505.1,2505.0,7.27448776]
[1747742966651,4.01052265,2505.1,2505.0,7.27448776]
[1747742967450,4.01052265,2505.1,2505.0,7.27447595]
[1747742968451,6.00649266,2505.1,2505.0,3.91770595]
[1747742968946,6.00649266,2505.1,2505.0,3.6351801]
[1747742969152,6.00649266,2505.1,2505.0,3.91811163]
[1747742969350,6.00649266,2505.1,2505.0,3.67266508]
[1747742970646,6.00649266,2505.1,2505.0,5.03856751]
[1747742971151,6.00649266,2505.1,2505.0,4.79299133]
[1747742972453,7.00635901,2505.1,2505.0,4.79299133]
[1747742972959,7.00635901,2505.1,2505.0,5.12050294]
[1747742974053,7.00635901,2505.1,2505.0,5.12050332]
[1747742974653,6.00649266,2505.1,2505.0,5.12050332]
[1747742975157,7.26749266,2505.1,2505.0,5.12050332]
[1747742976560,7.26749266,2505.1,2505.0,12.34860332]
[1747742976757,0.79813,2504.9,2504.8,0.49102273]
[1747742976950,0.79813,2504.9,2504.8,0.77405385]
[1747742977152,2.79426001,2504.9,2504.8,0.77405385]
[1747742977557,2.79426001,2504.9,2504.8,0.49102273]
[1747742978157,2.79426001,2504.9,2504.8,3.23102273]
[1747742978863,2.79426001,2504.9,2504.8,2.98553702]
[1747742979751,3.79412636,2504.9,2504.8,2.98553702]
[1747742981163,4.10929942,2504.9,2504.8,2.98553702]
[1747742981665,4.10929942,2504.9,2504.8,2.74]
[1747742981961,3.79412636,2504.9,2504.8,2.74]
[1747742982960,5.16912636,2504.9,2504.8,2.74]
[1747742983263,4.16926001,2504.9,2504.8,2.74]
[1747742984457,4.4887836,2504.9,2504.8,1.80027]
[1747742984651,4.4887836,2504.9,2504.8,0.56187]
[1747742984857,4.4887836,2504.9,2504.8,1e-05]
[1747742985057,0.79822,2504.6,2504.5,0.25153115]
[1747742985358,4.00602,2504.6,2504.5,0.25153115]
[1747742985579,6.00238501,2504.6,2504.5,0.25153115]
[1747742986158,6.00238501,2504.6,2504.5,2.74599413]
[1747742988769,6.00238501,2504.6,2504.5,3.03033965]
[1747742989370,6.00238501,2504.6,2504.5,3.03029919]
[1747742989566,6.00238501,2504.6,2504.5,3.43455219]
[1747742990263,7.00153399,2504.6,2504.5,0.69455219]
[1747742991062,7.00153399,2504.6,2504.5,0.69418304]
[1747742991262,7.00153399,2504.6,2504.5,3.43418304]
[1747742993273,6.00238501,2504.6,2504.5,3.43418304]
[1747742993771,7.33748501,2504.6,2504.5,3.43418304]
[1747742994671,7.33748501,2504.6,2504.5,3.43415464]
[1747742996078,5.34112,2504.6,2504.5,3.43415464]
[1747742996376,7.33748501,2504.6,2504.5,3.43415464]
[1747742997281,6.00238501,2504.6,2504.5,3.43415464]
[1747742997670,2.82499396,2504.6,2504.5,19.64977964]
[1747742997878,2.82499396,2504.6,2504.5,19.64977616]
[1747742998375,2.08658265,2504.6,2504.5,19.64977616]
[1747742998576,2.88480265,2504.6,2504.5,19.64977616]
[1747742999180,2.88480265,2504.6,2504.5,20.14079889]
[1747742999380,2.88480265,2504.6,2504.5,15.14079889]
[1747742999581,2.88480265,2504.6,2504.5,15.14082313]
[1747743000881,2.88480265,2504.6,2504.5,15.81332313]
[1747743001082,2.21920869,2504.6,2504.5,15.81333051]
[1747743003286,2.21920869,2504.6,2504.5,15.81337368]
[1747743004085,2.21920869,2504.6,2504.5,15.81340319]
[1747743004989,2.21920869,2504.6,2504.5,7.39240319]
[1747743005187,2.21920869,2504.6,2504.5,15.01414319]
[1747743005486,2.21920869,2504.6,2504.5,15.81240319]
[1747743005784,2.21920869,2504.6,2504.5,15.81248618]
[1747743006587,2.21920869,2504.6,2504.5,7.39248618]
[1747743006885,2.21920869,2504.6,2504.5,6.59422618]
[1747743007085,2.21920869,2504.6,2504.5,15.01422618]
[1747743007287,4.2155737,2504.6,2504.5,12.34536118]
[1747743007486,4.2155737,2504.6,2504.5,12.34547852]
[1747743008082,2.21920869,2504.6,2504.5,13.64817852]
[1747743008289,2.21920869,2504.6,2504.5,13.40251538]
[1747743008986,4.2155737,2504.6,2504.5,3.67981538]
[1747743009185,4.2155737,2504.6,2504.5,3.68028447]
[1747743009685,5.5015737,2504.6,2504.5,3.43492488]
[1747743010888,5.5015737,2504.6,2504.5,3.43499165]
[1747743011791,5.5015737,2504.6,2504.5,2.60477165]
[1747743011988,5.5015737,2504.6,2504.5,2.68963642]
[1747743012491,5.5015737,2504.6,2504.5,2.68963333]
[1747743013383,2.21920869,2504.6,2504.5,2.68963333]
[1747743013584,2.21920869,2504.6,2504.5,5.48425833]
[1747743014289,2.21920869,2504.6,2504.5,6.15916004]
[1747743014585,2.21920869,2504.6,2504.5,6.15913028]
[1747743014790,1.95976008,2504.6,2504.5,6.15913028]
[1747743015591,1.95976008,2504.6,2504.5,5.36087028]
[1747743015889,1.95976008,2504.6,2504.5,6.65014721]
[1747743017493,1.95976008,2504.6,2504.5,6.64997659]
[1747743017686,1.95976008,2504.6,2504.5,4.65361159]
[1747743017990,1.95976008,2504.6,2504.5,5.85171659]
[1747743018487,1.95976008,2504.6,2504.5,7.19751659]
[1747743019193,1.95976008,2504.6,2504.5,6.91317963]
[1747743019392,1.95976008,2504.6,2504.5,6.70651212]
[1747743019790,1.95976008,2504.6,2504.5,4.71014712]
[1747743019988,1.95976008,2504.6,2504.5,13.13114712]
[1747743020294,3.95612509,2504.6,2504.5,11.10924712]
[1747743020491,3.95612509,2504.6,2504.5,12.49364712]
[1747743021087,3.95612509,2504.6,2504.5,12.49370753]
[1747743021295,3.95612509,2504.6,2504.5,3.01669421]
[1747743022592,4.95527407,2504.6,2504.5,3.0167867]
[1747743023292,2.95890906,2504.6,2504.5,4.68576502]
[1747743023793,2.95890906,2504.6,2504.5,6.01076502]
[1747743023989,2.95890906,2504.6,2504.5,6.57569046]
[1747743024490,1.68171518,2504.6,2504.5,7.37390848]
[1747743024797,2.47993518,2504.6,2504.5,7.37390848]
[1747743024992,1.66166755,2505.2,2504.6,1.99553]
[1747743025292,2.89175498,2505.9,2505.8,0.79784]
[1747743025480,2.89175498,2505.9,2505.8,6.28543613]
[1747743025683,2.89175498,2505.9,2505.8,25.47463613]
[1747743025889,2.89175498,2505.9,2505.8,3.58979613]
[1747743026088,2.89175498,2505.9,2505.8,12.00198695]
[1747743026289,7.33014161,2506.1,2505.8,15.06134062]
[1747743026493,7.33015161,2506.1,2505.9,0.28365696]
[1747743026697,7.33015161,2506.1,2506.0,1.59365696]